bitfinex/quotes_BTCUSD_20240819
["timestamp","ask_amount","ask_price","bid_price","bid_amount"]
[1724043740417,1.21649687,58681.0,58680.0,0.0089042]
[1724043741300,1.72612071,58681.0,58680.0,0.0089042]
[1724043741517,1.67367498,58681.0,58680.0,0.0089042]
[1724043741787,1.67562578,58681.0,58680.0,0.0089042]
[1724043742438,1.53145304,58681.0,58680.0,0.0019042]
[1724043742649,2.08918736,58681.0,58680.0,0.0059042]
[1724043742892,1.93192438,58681.0,58680.0,0.0049042]
[1724043743124,2.08479125,58681.0,58680.0,0.0009042]
[1724043743344,1.92026574,58681.0,58680.0,0.0009042]
[1724043743567,1.92026574,58681.0,58680.0,0.0039042]
[1724043743568,2.09182028,58681.0,58680.0,0.0039042]
[1724043744736,2.09182028,58681.0,58680.0,0.0009042]
[1724043745144,2.09182028,58681.0,58680.0,0.0029042]
[1724043745347,1.93502579,58681.0,58680.0,0.0029042]
[1724043745697,1.52489325,58681.0,58680.0,0.0029042]
[1724043745909,1.52389325,58681.0,58680.0,0.0029042]
[1724043746319,1.52489325,58681.0,58680.0,0.0029042]
[1724043748097,1.44269325,58681.0,58680.0,0.0029042]
[1724043752481,1.44418318,58681.0,58680.0,0.0029042]
[1724043754714,1.44518318,58681.0,58680.0,0.0029042]
[1724043754915,1.52618318,58681.0,58680.0,0.0029042]
[1724043755124,1.52813398,58681.0,58680.0,0.0029042]
[1724043757892,1.52518318,58681.0,58680.0,0.0029042]
[1724043758107,1.52813398,58681.0,58680.0,0.0029042]
[1724043758773,1.52518318,58681.0,58680.0,0.0029042]
[1724043759188,1.52518318,58681.0,58680.0,0.0818042]
[1724043759189,1.01393208,58681.0,58680.0,0.0818042]
[1724043759458,0.9655092,58681.0,58680.0,0.0818042]
[1724043761096,0.96682327,58681.0,58680.0,0.0818042]
[1724043763443,1.06012327,58681.0,58680.0,0.0818042]
[1724043763646,1.10854923,58681.0,58680.0,0.0818042]
[1724043764041,1.10810865,58681.0,58680.0,0.0818042]
[1724043764727,1.10810865,58681.0,58680.0,0.0029042]
[1724043765144,1.31983441,58681.0,58680.0,0.0029042]
[1724043765768,1.18812629,58681.0,58680.0,0.0029042]
[1724043766183,1.7084452,58681.0,58680.0,0.0029042]
[1724043766821,1.7054944,58681.0,58680.0,0.0029042]
[1724043771620,1.6263944,58681.0,58680.0,0.0029042]
[1724043771819,1.47347739,58681.0,58680.0,0.0029042]
[1724043772019,1.01472629,58681.0,58680.0,0.0029042]
[1724043772423,1.09377881,58681.0,58680.0,0.0838042]
[1724043772829,1.06828252,58681.0,58680.0,0.0838042]
[1724043774344,1.06828252,58681.0,58680.0,0.1470042]
[1724043776074,0.82970452,58681.0,58680.0,0.1470042]
[1724043776252,0.46939055,58681.0,58680.0,0.1470042]
[1724043776479,0.39289369,58681.0,58680.0,0.1470042]
[1724043777023,0.63147169,58681.0,58680.0,0.1450042]
[1724043777222,0.39289369,58681.0,58680.0,0.1450042]
[1724043777448,0.39289369,58681.0,58680.0,0.1470042]
[1724043777859,0.39289369,58681.0,58680.0,0.1580042]
[1724043778637,0.443893,58681.0,58680.0,0.1580042]
[1724043779278,0.086026,58681.0,58680.0,0.2862952]
[1724043779492,0.086026,58681.0,58680.0,0.5248772]
[1724043779493,0.03402669,58681.0,58680.0,0.5248772]
[1724043780022,0.001,58682.0,58681.0,0.258089]
[1724043780554,0.000822,58683.0,58682.0,0.258087]
[1724043780555,0.001822,58683.0,58682.0,0.258087]
[1724043780765,0.001822,58683.0,58682.0,0.1388]
[1724043783183,0.001822,58683.0,58682.0,0.1458]
[1724043783744,0.001822,58683.0,58682.0,0.1388]
[1724043784101,0.001822,58683.0,58682.0,0.1628]
[1724043787915,0.03582761,58683.0,58682.0,0.1628]
[1724043788055,0.03582761,58683.0,58682.0,0.282087]
[1724043788462,0.03582761,58683.0,58682.0,0.1628]
[1724043789910,0.03582761,58683.0,58682.0,0.282087]
[1724043790113,0.03482761,58683.0,58682.0,0.520661]
[1724043790342,0.03482761,58683.0,58682.0,0.759235]
[1724043790766,0.000822,58683.0,58682.0,0.759235]
[1724043795992,0.000822,58683.0,58682.0,0.93078954]
[1724043798291,0.000822,58683.0,58682.0,1.16936354]
[1724043799252,0.000822,58683.0,58682.0,1.43093754]
[1724043799457,0.000822,58683.0,58682.0,1.53293754]
[1724043799835,0.000822,58683.0,58682.0,1.53493754]
[1724043800059,0.000822,58683.0,58682.0,1.52493754]
[1724043800261,0.000822,58683.0,58682.0,1.51093754]
[1724043800465,0.000822,58683.0,58682.0,1.52493754]
[1724043800718,0.000822,58683.0,58682.0,1.53893754]
[1724043801313,0.000822,58683.0,58682.0,1.53493754]
[1724043805032,0.000822,58683.0,58682.0,1.53584174]
[1724043805232,0.000822,58683.0,58682.0,1.53784174]
[1724043805622,0.000822,58683.0,58682.0,1.53584174]
[1724043807378,0.000822,58683.0,58682.0,1.51284174]
[1724043807704,0.000822,58683.0,58682.0,1.60614174]
[1724043808892,0.000822,58683.0,58682.0,1.62914174]
[1724043810909,0.000822,58683.0,58682.0,1.63596874]
[1724043814014,0.000822,58683.0,58682.0,1.63996874]
[1724043815178,0.000822,58683.0,58682.0,1.87854274]
[1724043815789,0.000822,58686.0,58685.0,1.219224]
[1724043815995,0.000822,58686.0,58685.0,1.60707854]
[1724043816430,0.000822,58686.0,58685.0,1.84563954]
[1724043817059,0.10822,58708.0,58691.0,1.379653]
[1724043817258,0.10822,58708.0,58691.0,1.84550754]
[1724043818628,0.10822,58708.0,58694.0,1.222562]
[1724043818827,0.10822,58708.0,58694.0,1.61041654]
[1724043819034,0.10822,58708.0,58700.0,0.60025]
[1724043819208,0.10822,58708.0,58700.0,1.58730454]
[1724043819410,0.10822,58708.0,58700.0,1.61030454]
[1724043820257,0.10822,58708.0,58700.0,1.62430454]
[1724043821553,0.10822,58708.0,58700.0,1.62230454]
[1724043821761,0.10822,58708.0,58700.0,1.63430454]
[1724043821964,0.10822,58708.0,58700.0,1.63830454]
[1724043822363,0.10822,58708.0,58700.0,1.6447281]
[1724043822740,0.10822,58708.0,58700.0,1.6467281]
[1724043822946,0.10822,58708.0,58700.0,1.6447281]
[1724043823152,0.10822,58708.0,58700.0,1.6467281]
[1724043823362,0.10822,58708.0,58700.0,1.6447281]
[1724043824965,0.10822,58708.0,58700.0,1.6487281]
[1724043826559,0.10822,58708.0,58700.0,1.6347281]
[1724043826755,0.10822,58708.0,58700.0,1.6207281]
[1724043827104,0.10822,58708.0,58700.0,1.6347281]
[1724043827478,0.10822,58708.0,58700.0,1.6487281]
[1724043828329,0.00010056,58701.0,58700.0,1.6487281]
[1724043828533,0.00092256,58701.0,58700.0,1.6487281]
[1724043831386,0.00092256,58701.0,58700.0,1.6447281]
[1724043831786,0.00092256,58701.0,58700.0,1.6467281]
[1724043831993,0.00092256,58701.0,58700.0,1.6487281]
[1724043834357,0.00092256,58701.0,58700.0,1.6347281]
[1724043834782,0.00092256,58701.0,58700.0,1.6487281]
[1724043835025,0.00092256,58701.0,58700.0,1.6347281]
[1724043835267,0.00092256,58701.0,58700.0,1.6487281]
[1724043839339,0.00092256,58701.0,58700.0,1.7169721]
[1724043842836,0.00092256,58701.0,58700.0,1.6490721]
[1724043844036,0.00092256,58701.0,58700.0,1.6510721]
[1724043844651,0.00092256,58701.0,58700.0,1.6530721]
[1724043845029,0.00092256,58701.0,58700.0,1.5557721]
[1724043845259,0.08002256,58701.0,58700.0,1.2359721]
[1724043845431,0.08002256,58701.0,58700.0,1.3292721]
[1724043845811,0.08002256,58701.0,58700.0,1.2359721]
[1724043846010,0.08002256,58701.0,58700.0,1.3292721]
[1724043846215,0.00092256,58701.0,58700.0,1.3292721]
[1724043847508,0.14122256,58701.0,58700.0,0.31880454]
[1724043848118,0.17579835,58701.0,58700.0,0.55730454]
[1724043848331,0.17579835,58701.0,58700.0,0.79580454]
[1724043848531,0.17579835,58701.0,58700.0,1.03430454]
[1724043848680,0.06322256,58701.0,58700.0,1.02030454]
[1724043848889,0.06322256,58701.0,58700.0,1.03430454]
[1724043849885,0.06322256,58701.0,58700.0,1.02030454]
[1724043850086,0.06322256,58701.0,58700.0,1.03430454]
[1724043852150,0.00092256,58701.0,58700.0,1.05730454]
[1724043852452,0.00092256,58701.0,58700.0,1.05820874]
[1724043854849,0.08032256,58701.0,58700.0,0.79670874]
[1724043855020,0.14622256,58701.0,58700.0,0.79670874]
[1724043857631,0.06682256,58701.0,58700.0,0.79670874]
[1724043860402,0.00092256,58701.0,58700.0,0.79670874]
[1724043860607,0.00092256,58701.0,58700.0,0.81970874]
[1724043860835,0.00092256,58701.0,58700.0,1.05820874]
[1724043861440,0.00092256,58701.0,58700.0,1.15820874]
[1724043862425,0.00092256,58701.0,58700.0,1.20923091]
[1724043863245,0.00092256,58701.0,58700.0,1.552442]
[1724043863426,0.00092256,58701.0,58700.0,1.80196259]
[1724043863858,0.00092256,58701.0,58700.0,1.72542933]
[1724043864696,0.14502256,58701.0,58700.0,1.40772933]
[1724043864848,0.14502256,58701.0,58700.0,1.48436136]
[1724043865550,0.14502256,58701.0,58700.0,1.15820874]
[1724043868797,0.14502256,58701.0,58700.0,1.25150874]
[1724043869615,0.14502256,58701.0,58700.0,1.22850874]
[1724043869823,0.14502256,58701.0,58700.0,1.27960073]
[1724043871724,0.06701249,58701.0,58700.0,1.27960073]
[1724043872090,0.06701249,58701.0,58700.0,1.22850874]
[1724043874559,0.00051249,58701.0,58700.0,1.30514077]
[1724043874743,0.00051249,58701.0,58700.0,1.32814077]
[1724043874945,0.00051249,58701.0,58700.0,1.25150874]
[1724043875629,0.14491249,58701.0,58700.0,1.25150874]
[1724043875835,0.14491249,58701.0,58700.0,1.15820874]
[1724043876039,0.14491249,58701.0,58700.0,1.25150874]
[1724043882598,0.06371249,58701.0,58700.0,1.25150874]
[1724043884511,0.06371249,58701.0,58700.0,1.30261838]
[1724043885139,0.06371249,58701.0,58700.0,1.25150874]
[1724043885343,0.06371249,58701.0,58700.0,1.30262118]
[1724043886904,0.00051249,58701.0,58700.0,1.30262118]
[1724043887105,0.00051249,58701.0,58700.0,1.66062709]
[1724043887307,0.00051249,58701.0,58700.0,1.38442561]
[1724043887506,0.00051249,58701.0,58700.0,1.66127144]
[1724043888305,0.00051249,58701.0,58700.0,1.4099774]
[1724043888719,0.00051249,58701.0,58700.0,1.66081614]
[1724043889350,0.00051249,58701.0,58700.0,1.660822]
[1724043889982,0.00051249,58701.0,58700.0,1.66081461]
[1724043890181,0.00051249,58701.0,58700.0,1.58412271]
[1724043890382,0.00051249,58701.0,58700.0,1.68637953]
[1724043890803,0.00051249,58701.0,58700.0,1.92487953]
[1724043891355,0.00051249,58701.0,58700.0,1.82262271]
[1724043891577,0.00051249,58701.0,58700.0,1.95044373]
[1724043891787,0.06691249,58701.0,58700.0,1.63014373]
[1724043891999,0.06691249,58701.0,58700.0,1.3282181]
[1724043892203,0.06691249,58701.0,58700.0,1.57933423]
[1724043892357,0.06691249,58701.0,58700.0,1.50262487]
[1724043892959,0.06691249,58701.0,58700.0,1.5793341]
[1724043893164,0.06691249,58701.0,58700.0,1.50262487]
[1724043894264,0.06691249,58701.0,58700.0,1.60490298]
[1724043895061,0.06691249,58701.0,58700.0,1.50262487]
[1724043895284,0.00051249,58701.0,58700.0,1.50262487]
[1724043895464,0.00051249,58701.0,58700.0,1.58582487]
[1724043895708,0.00051249,58701.0,58700.0,1.71364589]
[1724043895913,0.00051249,58701.0,58700.0,1.71369399]
[1724043897907,0.00051249,58701.0,58700.0,1.58582487]
[1724043898740,0.00051249,58701.0,58700.0,1.82432487]
[1724043898965,0.00051249,58701.0,58700.0,1.95218964]
[1724043899181,0.00051249,58701.0,58700.0,1.82284105]
[1724043899443,0.00051249,58701.0,58700.0,1.95070444]
[1724043899638,0.00051249,58701.0,58700.0,1.71220444]
[1724043899815,0.00051249,58701.0,58700.0,1.58434105]
[1724043899965,0.00051249,58701.0,58700.0,1.92513297]
[1724043900491,0.00051249,58701.0,58700.0,1.51013297]
[1724043900739,0.07801249,58701.0,58700.0,1.60343297]
[1724043900906,0.07801249,58701.0,58700.0,1.50114105]
[1724043901726,0.07801249,58701.0,58700.0,1.30265996]
[1724043902127,0.07801249,58701.0,58700.0,1.25150874]
[1724043902308,0.07801249,58701.0,58700.0,1.30265867]
[1724043903514,0.00051249,58701.0,58700.0,1.30265867]
[1724043904216,0.00051249,58701.0,58700.0,1.36305867]
[1724043905412,0.10822,58708.0,58707.0,0.834652]
[1724043905617,0.10822,58708.0,58707.0,1.50967854]
[1724043905822,0.10822,58708.0,58707.0,1.85786055]
[1724043906047,0.10822,58708.0,58707.0,1.75958191]
[1724043906465,0.10822,58708.0,58707.0,1.75558191]
[1724043906666,0.10822,58708.0,58707.0,1.8738355]
[1724043906890,0.10822,58708.0,58707.0,1.8578355]
[1724043907430,0.10822,58708.0,58707.0,1.8718355]
[1724043908064,0.10822,58708.0,58707.0,1.8578355]
[1724043908467,0.10822,58708.0,58707.0,1.8718355]
[1724043908913,0.10822,58708.0,58707.0,1.7795441]
[1724043909521,0.10822,58708.0,58707.0,1.7935441]
[1724043909725,0.10822,58708.0,58707.0,1.85620476]
[1724043910073,0.10822,58708.0,58707.0,1.87020476]
[1724043911348,0.10822,58708.0,58707.0,1.87420476]
[1724043911554,0.10822,58708.0,58707.0,1.62630139]
[1724043911981,0.10822,58708.0,58707.0,1.62230139]
[1724043912196,0.10822,58708.0,58707.0,1.60830139]
[1724043912453,0.10822,58708.0,58707.0,1.59430139]
[1724043912604,0.10822,58708.0,58707.0,1.60830139]
[1724043912810,0.10822,58708.0,58707.0,1.62430139]
[1724043912983,0.10822,58708.0,58707.0,1.88672038]
[1724043913186,0.10822,58708.0,58707.0,1.88472038]
[1724043914008,0.10822,58708.0,58707.0,1.87072038]
[1724043914454,0.00822,58708.0,58707.0,1.87072038]
[1724043914622,0.00822,58708.0,58707.0,1.88472038]
[1724043915310,0.00822,58708.0,58707.0,1.60830139]
[1724043915503,0.00822,58708.0,58707.0,1.53220139]
[1724043915766,0.00822,58708.0,58707.0,1.53420139]
[1724043915932,0.00822,58708.0,58707.0,1.56220139]
[1724043916150,0.00822,58708.0,58707.0,1.56020139]
[1724043916736,0.07042,58708.0,58707.0,1.16716873]
[1724043916937,0.07042,58708.0,58707.0,1.26046873]
[1724043917561,0.07042,58708.0,58707.0,1.24646873]
[1724043917766,0.07042,58708.0,58707.0,1.31154686]
[1724043918581,0.07042,58708.0,58707.0,1.29754686]
[1724043919192,0.07042,58708.0,58707.0,1.31154686]
[1724043920557,0.00822,58708.0,58707.0,1.31154686]
[1724043923612,0.00822,58708.0,58707.0,1.26046873]
[1724043928942,0.14472,58708.0,58707.0,0.90569673]
[1724043929150,0.14472,58708.0,58707.0,0.55726254]
[1724043929358,0.14472,58708.0,58707.0,0.31879054]
[1724043929559,0.14472,58708.0,58707.0,0.55726254]
[1724043929560,0.17935474,58708.0,58707.0,0.55726254]
[1724043930166,0.17935474,58708.0,58707.0,0.52926254]
[1724043930547,0.14472,58708.0,58707.0,0.55726254]
[1724043931709,0.17934645,58708.0,58707.0,0.55726254]
[1724043932544,0.53804845,58708.0,58707.0,0.028]
[1724043932951,0.77651645,58708.0,58707.0,0.028]
[1724043933572,1.01498445,58708.0,58707.0,0.028]
[1724043933983,1.01498445,58708.0,58707.0,0.014]
[1724043934436,1.01498445,58708.0,58707.0,0.028]
[1724043934817,0.77651645,58708.0,58707.0,0.014]
[1724043934992,0.53704845,58708.0,58707.0,0.014]
[1724043935203,0.29958045,58708.0,58707.0,0.028]
[1724043935561,0.29858045,58708.0,58707.0,0.028]
[1724043935754,0.29858045,58708.0,58707.0,0.014]
[1724043935978,0.29858045,58708.0,58707.0,0.028]
[1724043936138,0.29958045,58708.0,58707.0,0.028]
[1724043936722,0.29858045,58708.0,58707.0,0.028]
[1724043937121,0.29958045,58708.0,58707.0,0.028]
[1724043937535,0.29858045,58708.0,58707.0,0.028]
[1724043937732,0.29958045,58708.0,58707.0,0.028]
[1724043937938,0.17934645,58708.0,58707.0,0.028]
[1724043938164,0.17934645,58708.0,58707.0,0.147236]
[1724043938776,0.17934645,58708.0,58707.0,0.31879054]
[1724043939647,0.17934645,58708.0,58707.0,0.55726254]
[1724043942836,0.17934645,58708.0,58707.0,0.31879054]
[1724043945406,0.17934645,58708.0,58707.0,0.19955454]
[1724043945603,0.41881445,58708.0,58707.0,0.028]
[1724043945815,0.53804845,58708.0,58707.0,0.028]
[1724043950061,0.17934645,58708.0,58707.0,0.028]
[1724043950264,0.18034645,58708.0,58707.0,0.147236]
[1724043950578,0.18034645,58708.0,58707.0,0.028]
[1724043952600,0.29958045,58708.0,58707.0,0.028]
[1724043952808,0.53804845,58708.0,58707.0,0.028]
[1724043958156,0.77651645,58708.0,58707.0,0.028]
[1724043958370,1.01498445,58708.0,58707.0,0.028]
[1724043959555,1.13938091,58708.0,58707.0,0.028]
[1724043959797,1.43034164,58708.0,58707.0,0.028]
[1724043959915,1.32992851,58708.0,58707.0,0.028]
[1724043960114,1.25345245,58708.0,58707.0,0.028]
[1724043960743,1.32992834,58708.0,58707.0,0.028]
[1724043962644,1.01498445,58708.0,58707.0,0.028]
[1724043963308,1.0659486,58708.0,58707.0,0.028]
[1724043963953,1.01498445,58708.0,58707.0,0.028]
[1724043964103,1.06594639,58708.0,58707.0,0.028]
[1724043964317,1.06889719,58708.0,58707.0,0.028]
[1724043964520,1.10828445,58708.0,58707.0,0.028]
[1724043964725,1.15925012,58708.0,58707.0,0.028]
[1724043965107,1.16220092,58708.0,58707.0,0.028]
[1724043965532,1.18768607,58708.0,58707.0,0.028]
[1724043966109,1.11123525,58708.0,58707.0,0.028]
[1724043966538,1.18768607,58708.0,58707.0,0.028]
[1724043967190,1.31064042,58708.0,58707.0,0.028]
[1724043967393,1.46566171,58708.0,58707.0,0.028]
[1724043967737,1.70412971,58708.0,58707.0,0.028]
[1724043968584,1.70412524,58708.0,58707.0,0.028]
[1724043969134,1.80412524,58708.0,58707.0,0.028]
[1724043969262,1.92813987,58708.0,58707.0,0.028]
[1724043969464,1.82621141,58708.0,58707.0,0.028]
[1724043969665,1.7986007,58708.0,58707.0,0.028]
[1724043970269,1.7966499,58708.0,58707.0,0.028]
[1724043970469,1.7986007,58708.0,58707.0,0.028]
[1724043970928,1.7986007,58708.0,58707.0,0.014]
[1724043971127,1.7986007,58708.0,58701.0,0.0009042]
[1724043971128,0.8376728,58702.0,58701.0,0.0009042]
[1724043971332,1.0789728,58702.0,58701.0,0.0009042]
[1724043971585,1.11745911,58702.0,58701.0,0.0009042]
[1724043972011,1.11450831,58702.0,58701.0,0.0009042]
[1724043972635,1.11450831,58702.0,58701.0,0.0149042]
[1724043973048,1.11450831,58702.0,58701.0,0.0289042]
[1724043973624,1.02120831,58702.0,58701.0,0.0289042]
[1724043989350,0.39622431,58702.0,58701.0,0.0289042]
[1724043989577,0.39622431,58702.0,58701.0,0.1674042]
[1724043994305,0.39704631,58702.0,58701.0,0.1674042]
[1724043995490,0.39704631,58702.0,58701.0,0.1072042]
[1724043995841,0.824564,58702.0,58701.0,0.0289042]
[1724043996067,0.77353831,58702.0,58701.0,0.0289042]
[1724043996276,1.01203031,58702.0,58701.0,0.0289042]
[1724043996473,1.08856884,58702.0,58701.0,0.0289042]
[1724043996825,0.85007684,58702.0,58701.0,0.0289042]
[1724043997248,1.08856884,58702.0,58701.0,0.0289042]
[1724043997457,0.77353831,58702.0,58701.0,0.0289042]
[1724043997658,0.85007684,58702.0,58701.0,0.0289042]
[1724043997858,0.77353831,58702.0,58701.0,0.0289042]
[1724043998064,0.74840703,58702.0,58701.0,0.0289042]
[1724043998271,0.63553831,58702.0,58701.0,0.0289042]
[1724043998482,0.68660803,58702.0,58701.0,0.0289042]
[1724043998700,0.63553831,58702.0,58701.0,0.0289042]
[1724043998902,0.63553831,58702.0,58701.0,0.1098042]
[1724043998903,0.39704631,58702.0,58701.0,0.1098042]
[1724044000535,0.03930831,58702.0,58701.0,0.1098042]
[1724044000735,0.03930831,58702.0,58701.0,0.1737042]
[1724044000910,0.15855431,58702.0,58701.0,0.1737042]
[1724044001956,0.03830831,58702.0,58701.0,0.79630274]
[1724044002174,0.03830831,58702.0,58701.0,1.03479874]
[1724044002567,0.000822,58702.0,58701.0,1.04480424]
[1724044005045,0.000822,58702.0,58701.0,0.94149874]
[1724044005220,0.000822,58702.0,58701.0,0.46450674]
[1724044005419,0.03927636,58702.0,58701.0,0.1098042]
[1724044012906,0.15852236,58702.0,58701.0,0.0289042]
[1724044014987,0.03927636,58702.0,58701.0,0.0289042]
[1724044015367,0.15852236,58702.0,58701.0,0.0289042]
[1724044017807,0.03927636,58702.0,58701.0,0.0289042]
[1724044018898,0.15852236,58702.0,58701.0,0.0289042]
[1724044019329,0.03927636,58702.0,58701.0,0.0289042]
[1724044019531,0.03927636,58702.0,58701.0,0.1751042]
[1724044021108,0.15852236,58702.0,58701.0,0.1110042]
[1724044021937,0.39701436,58702.0,58701.0,0.0289042]
[1724044022144,0.63550636,58702.0,58701.0,0.0289042]
[1724044022584,0.39701436,58702.0,58701.0,0.0289042]
[1724044023486,0.44812043,58702.0,58701.0,0.0289042]
[1724044023942,0.20962843,58702.0,58701.0,0.0289042]
[1724044024402,0.87170636,58702.0,58701.0,0.0289042]
[1724044024608,1.2090645,58702.0,58701.0,0.0289042]
[1724044024831,1.2100645,58702.0,58701.0,0.0289042]
[1724044025246,1.62082956,58702.0,58701.0,0.0289042]
[1724044025421,1.57433218,58702.0,58701.0,0.0289042]
[1724044025632,1.79433604,58702.0,58701.0,0.0289042]
[1724044026030,1.79044675,58702.0,58701.0,0.0149042]
[1724044026590,1.95504154,58702.0,58701.0,0.0149042]
[1724044026796,1.95704154,58702.0,58701.0,0.0149042]
[1724044027035,2.46804308,58702.0,58701.0,0.0149042]
[1724044027236,2.29553354,58702.0,58701.0,0.0009042]
[1724044027452,2.29553354,58702.0,58701.0,0.0149042]
[1724044027453,2.46804308,58702.0,58701.0,0.0149042]
[1724044027821,2.46804308,58702.0,58701.0,0.0289042]
[1724044027822,2.29553354,58702.0,58701.0,0.0289042]
[1724044028012,2.29553354,58702.0,58701.0,0.0149042]
[1724044028233,2.46804308,58702.0,58701.0,0.0159042]
[1724044028436,2.29553354,58702.0,58701.0,0.0159042]
[1724044028768,2.29553354,58702.0,58701.0,0.0019042]
[1724044028964,2.29753354,58702.0,58701.0,0.0019042]
[1724044031536,2.32053354,58702.0,58701.0,0.0019042]
[1724044034288,2.30889968,58702.0,58701.0,0.0059042]
[1724044034471,3.58839968,58702.0,58701.0,0.0059042]
[1724044035706,3.59509564,58702.0,58701.0,0.0059042]
[1724044036105,3.74801012,58702.0,58701.0,0.0059042]
[1724044036314,3.58835323,58702.0,58701.0,0.0059042]
[1724044037607,3.58835323,58702.0,58701.0,0.00380061]
[1724044038314,3.43543875,58702.0,58701.0,0.00380061]
[1724044039381,3.58835323,58702.0,58701.0,0.00380061]
[1724044039640,3.5814598,58702.0,58701.0,0.00380061]
[1724044039847,3.5814598,58702.0,58701.0,0.00303156]
[1724044040636,2.3019598,58702.0,58701.0,0.00303156]
[1724044041080,2.30621904,58702.0,58701.0,5.6e-07]
[1724044042034,2.30621904,58702.0,58701.0,0.00090476]
[1724044043415,2.3017635,58702.0,58701.0,0.00090476]
[1724044044583,2.30556162,58702.0,58701.0,0.00090476]
[1724044044896,2.30174214,58702.0,58701.0,0.00090476]
[1724044048227,2.46771574,58702.0,58701.0,0.00090476]
[1724044048431,2.30174214,58702.0,58701.0,0.00090476]
[1724044048721,2.14914486,58702.0,58701.0,0.00090476]
[1724044048938,2.30905389,58702.0,58701.0,0.00090476]
[1724044049543,2.32241493,58702.0,58701.0,0.00090476]
[1724044049740,2.32241493,58702.0,58701.0,0.00043745]
[1724044050160,2.32241493,58702.0,58685.0,0.51177509]
[1724044050161,0.120278,58686.0,58685.0,0.51177509]
[1724044050377,0.598392,58686.0,58685.0,0.51177509]
[1724044050588,0.598392,58686.0,58682.0,0.0009042]
[1724044050589,0.597422,58683.0,58682.0,0.0009042]
[1724044050769,0.690722,58683.0,58682.0,0.0009042]
[1724044050984,0.929291,58683.0,58682.0,0.0009042]
[1724044051172,0.96652797,58683.0,58682.0,0.0009042]
[1724044052029,0.96752797,58683.0,58682.0,0.0149042]
[1724044052233,1.00409845,58683.0,58682.0,0.0149042]
[1724044052445,0.96852797,58683.0,58682.0,0.0149042]
[1724044053031,0.97047877,58683.0,58682.0,0.0149042]
[1724044053233,1.20904777,58683.0,58682.0,0.0148242]
[1724044053433,1.20904777,58683.0,58682.0,0.0288242]
[1724044053434,1.47583047,58683.0,58682.0,0.0288242]
[1724044053661,1.62670132,58683.0,58682.0,0.0288242]
[1724044054253,1.62670132,58683.0,58682.0,0.0148242]
[1724044054474,1.62570132,58683.0,58682.0,0.0008242]
[1724044054694,1.650888,58683.0,58682.0,0.0278242]
[1724044057373,1.96334311,58683.0,58682.0,0.0278242]
[1724044057791,1.88703683,58683.0,58682.0,0.0278242]
[1724044057998,1.9633172,58683.0,58682.0,0.0278242]
[1724044058444,2.10049362,58683.0,58682.0,0.0278242]
[1724044059070,1.79573683,58683.0,58682.0,0.0278242]
[1724044059280,1.88771226,58683.0,58682.0,0.0278242]
[1724044059495,1.88771364,58683.0,58682.0,0.0148242]
[1724044059705,1.81143683,58683.0,58682.0,0.0148242]
[1724044059909,1.81443683,58683.0,58682.0,0.0008242]
[1724044060320,1.89072747,58683.0,58682.0,0.0008242]
[1724044060522,1.57586783,58683.0,58682.0,0.0008242]
[1724044060977,1.65215847,58683.0,58682.0,0.0008242]
[1724044061877,1.57586783,58683.0,58682.0,0.0008242]
[1724044062333,1.65215847,58683.0,58682.0,0.0008242]
[1724044062754,1.57586783,58683.0,58682.0,0.0008242]
[1724044063164,1.65215847,58683.0,58682.0,0.0008242]
[1724044065011,1.65219845,58683.0,58682.0,0.0008242]
[1724044065215,1.66510747,58683.0,58682.0,0.0008242]
[1724044065831,1.76688163,58683.0,58682.0,0.0008242]
[1724044066037,1.76689799,58683.0,58682.0,0.0008242]
[1724044066345,1.66510747,58683.0,58682.0,0.0008242]
[1724044066987,1.76689799,58683.0,58682.0,0.0008242]
[1724044067184,1.66510747,58683.0,58682.0,0.0008242]
[1724044067419,1.76689799,58683.0,58682.0,0.0008242]
[1724044067622,1.76691368,58683.0,58682.0,0.0008242]
[1724044068274,1.79232517,58683.0,58682.0,0.0008242]
[1724044068530,1.66510747,58683.0,58682.0,0.0008242]
[1724044069386,1.74790747,58683.0,58682.0,0.0008242]
[1724044071492,1.65866783,58683.0,58682.0,0.0008242]
[1724044071698,1.74764236,58683.0,58682.0,0.0008242]
[1724044072541,1.66484236,58683.0,58682.0,0.0008242]
[1724044073141,1.97881136,58683.0,58682.0,0.0008242]
[1724044073692,2.13778591,58683.0,58682.0,0.0008242]
[1724044077650,2.13860791,58683.0,58682.0,0.0008242]
[1724044080515,1.89065883,58683.0,58682.0,0.0008242]
[1724044080736,2.13172302,58683.0,58682.0,0.0008242]
[1724044080950,2.03842302,58683.0,58682.0,0.0008242]
[1724044081149,1.72435523,58683.0,58682.0,0.0806242]
[1724044081348,1.63911019,58683.0,58682.0,0.0806242]
[1724044081548,1.57537011,58683.0,58682.0,0.0806242]
[1724044081727,1.72831042,58683.0,58682.0,0.0806242]
[1724044082325,1.72435962,58683.0,58682.0,0.0806242]
[1724044082534,1.23855031,58683.0,58682.0,0.0806242]
[1724044082784,1.33185031,58683.0,58682.0,0.0806242]
[1724044083333,1.33185031,58683.0,58682.0,0.1423242]
[1724044084030,1.33633435,58683.0,58682.0,0.1423242]
[1724044087987,1.57590335,58683.0,58682.0,0.0806242]
[1724044088176,1.57590335,58683.0,58682.0,0.0008242]
[1724044088177,1.72393468,58683.0,58682.0,0.0008242]
[1724044088763,1.72688548,58683.0,58682.0,0.0008242]
[1724044088940,1.87699944,58683.0,58682.0,0.0008242]
[1724044089321,1.88302785,58683.0,58682.0,0.0008242]
[1724044090533,1.73325852,58683.0,58682.0,0.0008242]
[1724044091178,1.72726885,58683.0,58682.0,0.0008242]
[1724044091351,1.73400192,58683.0,58682.0,0.0008242]
[1724044092984,1.73400192,58683.0,58682.0,0.00071306]
[1724044095779,1.73695272,58683.0,58682.0,0.00071306]
[1724044095979,1.80125272,58683.0,58682.0,0.00071306]
[1724044097413,1.9733541,58683.0,58682.0,0.00071306]
[1724044097659,1.97148778,58683.0,58682.0,0.00071306]
[1724044102410,1.97171612,58683.0,58682.0,0.00071306]
[1724044102906,2.14221399,58683.0,58682.0,6e-08]
[1724044103133,2.14221399,58683.0,58680.0,2.6e-07]
[1724044103134,0.9203738,58681.0,58680.0,2.6e-07]
[1724044103351,1.76565542,58681.0,58680.0,2.6e-07]
[1724044103569,2.16952743,58681.0,58680.0,2.6e-07]
[1724044104431,2.17052743,58681.0,58680.0,2.6e-07]
[1724044105897,2.16952743,58681.0,58680.0,0.00200026]
[1724044106314,2.16952743,58681.0,58680.0,2.6e-07]
[1724044106528,2.17352743,58681.0,58680.0,2.6e-07]
[1724044106736,2.18052743,58681.0,58680.0,0.00100026]
[1724044106959,1.074745,58673.0,58672.0,0.00065731]
[1724044107165,1.59231042,58673.0,58672.0,0.00065731]
[1724044107365,1.78555929,58673.0,58672.0,0.00065731]